[Event "Early-Titled-Tuesday-Blitz-September-26-2023"]
[Site "Chess.com"]
[Date "2023.09.26"]
[Round "8"]
[White "campochess"]
[Black "Mariia89"]
[Result "1-0"]
[WhiteElo "2180"]
[BlackElo "2076"]
[TimeControl "180+1"]
[EndTime "9:29:40 PDT"]
[Termination "campochess won on time"]

1. e4 {[%clk 0:02:59.9]} 1... c6 {[%clk 0:03:00.3]} 2. Nc3 {[%clk 0:02:58.4]}
2... d5 {[%clk 0:03:00.4]} 3. Nf3 {[%clk 0:02:58.5]} 3... dxe4 {[%clk
0:03:00.1]} 4. Nxe4 {[%clk 0:02:58.2]} 4... Nf6 {[%clk 0:03:00.7]} 5. Ng3 {[%clk
0:02:58]} 5... h5 {[%clk 0:02:58.9]} 6. h4 {[%clk 0:02:53.3]} 6... Bg4 {[%clk
0:02:56.5]} 7. Bc4 {[%clk 0:02:53]} 7... e6 {[%clk 0:02:55.3]} 8. d4 {[%clk
0:02:52.1]} 8... c5 {[%clk 0:02:53.7]} 9. c3 {[%clk 0:02:51.6]} 9... Nc6 {[%clk
0:02:53.3]} 10. Be3 {[%clk 0:02:48.8]} 10... cxd4 {[%clk 0:02:49.8]} 11. cxd4
{[%clk 0:02:46.2]} 11... Bb4+ {[%clk 0:02:42.8]} 12. Kf1 {[%clk 0:02:46]} 12...
Bd6 {[%clk 0:02:31.4]} 13. Ne2 {[%clk 0:02:42.6]} 13... Bxf3 {[%clk 0:02:22.5]}
14. gxf3 {[%clk 0:02:41.5]} 14... a6 {[%clk 0:02:21.6]} 15. Rc1 {[%clk 0:02:39]}
15... Rc8 {[%clk 0:02:20.9]} 16. Rg1 {[%clk 0:02:37.6]} 16... g6 {[%clk
0:02:18.2]} 17. Bg5 {[%clk 0:02:33]} 17... Be7 {[%clk 0:02:17.9]} 18. Qd2 {[%clk
0:02:14.6]} 18... Nh7 {[%clk 0:02:04.6]} 19. a3 {[%clk 0:01:58.2]} 19... Nxg5
{[%clk 0:01:58.5]} 20. hxg5 {[%clk 0:01:57]} 20... h4 {[%clk 0:01:33.9]} 21. f4
{[%clk 0:01:56.7]} 21... b5 {[%clk 0:01:27.8]} 22. Ba2 {[%clk 0:01:48.5]} 22...
b4 {[%clk 0:01:25.2]} 23. d5 {[%clk 0:01:41.9]} 23... bxa3 {[%clk 0:01:15.1]}
24. bxa3 {[%clk 0:01:31.8]} 24... Bxa3 {[%clk 0:01:07.7]} 25. Rc2 {[%clk
0:01:20.1]} 25... Bb4 {[%clk 0:01:07]} 26. Qd3 {[%clk 0:01:13.1]} 26... O-O
{[%clk 0:00:38.5]} 27. Qb3 {[%clk 0:00:59.7]} 27... exd5 {[%clk 0:00:36.2]} 28.
Rxc6 {[%clk 0:00:56.6]} 28... Rxc6 {[%clk 0:00:34.6]} 29. Qxb4 {[%clk
0:00:56.7]} 29... a5 {[%clk 0:00:11.7]} 30. Qd4 {[%clk 0:00:53.5]} 30... Qb8
{[%clk 0:00:08.8]} 31. Qxd5 {[%clk 0:00:47.7]} 31... Ra6 {[%clk 0:00:07.5]} 32.
Nd4 {[%clk 0:00:39.5]} 32... Qb2 {[%clk 0:00:07]} 33. Bc4 {[%clk 0:00:31.7]}
33... Qc1+ {[%clk 0:00:05.6]} 34. Kg2 {[%clk 0:00:30.3]} 34... Rb6 {[%clk
0:00:05.2]} 35. Ne2 {[%clk 0:00:24]} 35... Qc2 {[%clk 0:00:04.7]} 36. Rc1 {[%clk
0:00:19.4]} 36... Qb2 {[%clk 0:00:03.4]} 37. Qd3 {[%clk 0:00:15.5]} 37... Kg7
{[%clk 0:00:02.7]} 38. Rc2 {[%clk 0:00:14.8]} 38... Qa1 {[%clk 0:00:02.5]} 39.
Nd4 {[%clk 0:00:14.9]} 39... a4 {[%clk 0:00:02.2]} 40. f5 {[%clk 0:00:14.5]}
40... gxf5 {[%clk 0:00:01.8]} 41. Nxf5+ {[%clk 0:00:13.4]} 41... Kh8 {[%clk
0:00:02.7]} 42. Ne7 {[%clk 0:00:12.2]} 42... Rd6 {[%clk 0:00:01.1]} 43. Qe3
{[%clk 0:00:11.2]} 1-0

[Event "Early-Titled-Tuesday-Blitz-September-26-2023"]
[Site "Chess.com"]
[Date "2023.09.26"]
[Round "8"]
[White "wild3000"]
[Black "PawnEatingZombie"]
[Result "1-0"]
[WhiteElo "2289"]
[BlackElo "2144"]
[TimeControl "180+1"]
[EndTime "9:29:45 PDT"]
[Termination "wild3000 won on time"]

1. g3 {[%clk 0:03:00.5]} 1... c5 {[%clk 0:02:54.9]} 2. Bg2 {[%clk 0:03:01.4]}
2... Nc6 {[%clk 0:02:55.2]} 3. f4 {[%clk 0:03:01.6]} 3... g6 {[%clk 0:02:53.3]}
4. e4 {[%clk 0:03:00.8]} 4... Bg7 {[%clk 0:02:53.4]} 5. Nc3 {[%clk 0:03:00.2]}
5... e6 {[%clk 0:02:52.8]} 6. Nf3 {[%clk 0:02:59.3]} 6... Nge7 {[%clk
0:02:53.3]} 7. O-O {[%clk 0:02:59.4]} 7... O-O {[%clk 0:02:53]} 8. d3 {[%clk
0:02:59.2]} 8... d6 {[%clk 0:02:50.1]} 9. h4 {[%clk 0:02:59.5]} 9... Rb8 {[%clk
0:02:46.9]} 10. h5 {[%clk 0:02:59.7]} 10... b5 {[%clk 0:02:46.7]} 11. hxg6
{[%clk 0:02:55.9]} 11... hxg6 {[%clk 0:02:45.9]} 12. Ng5 {[%clk 0:02:56.2]}
12... b4 {[%clk 0:02:41.2]} 13. Na4 {[%clk 0:02:53.4]} 13... Qa5 {[%clk
0:02:34.9]} 14. c3 {[%clk 0:02:50.4]} 14... bxc3 {[%clk 0:02:31.6]} 15. bxc3
{[%clk 0:02:48.4]} 15... Bd7 {[%clk 0:02:21.1]} 16. Bd2 {[%clk 0:02:45.1]} 16...
Nd4 {[%clk 0:02:09.4]} 17. cxd4 {[%clk 0:02:44.2]} 17... Bxd4+ {[%clk
0:02:08.5]} 18. Kh1 {[%clk 0:02:43.9]} 18... Qxa4 {[%clk 0:02:06]} 19. Qxa4
{[%clk 0:02:29.4]} 19... Bxa4 {[%clk 0:02:06.9]} 20. Bf3 {[%clk 0:02:19.8]}
20... Rb2 {[%clk 0:01:53.6]} 21. Bc1 {[%clk 0:02:10.5]} 21... Rc2 {[%clk
0:01:40.6]} 22. Bd1 {[%clk 0:02:07.2]} 22... Bxa1 {[%clk 0:01:37]} 23. Bxc2
{[%clk 0:02:06.8]} 23... Bxc2 {[%clk 0:01:37.9]} 24. Rf3 {[%clk 0:02:01.5]}
24... Rb8 {[%clk 0:01:21.5]} 25. Kg2 {[%clk 0:01:54.7]} 25... Rb1 {[%clk
0:01:11.7]} 26. Ba3 {[%clk 0:01:54.7]} 26... Bd4 {[%clk 0:01:04.1]} 27. g4
{[%clk 0:01:49.5]} 27... Rd1 {[%clk 0:00:55]} 28. e5 {[%clk 0:01:45.6]} 28...
dxe5 {[%clk 0:00:40.6]} 29. Ne4 {[%clk 0:01:42.9]} 29... exf4 {[%clk 0:00:28.9]}
30. Nxc5 {[%clk 0:01:41.7]} 30... Bxc5 {[%clk 0:00:27.4]} 31. Bxc5 {[%clk
0:01:42.6]} 31... Nd5 {[%clk 0:00:26.7]} 32. Rf2 {[%clk 0:01:39.1]} 32... Bxd3
{[%clk 0:00:25.5]} 33. Rb2 {[%clk 0:01:38.8]} 33... Be4+ {[%clk 0:00:24.4]} 34.
Kf2 {[%clk 0:01:37.8]} 34... Rb1 {[%clk 0:00:18.7]} 35. Rd2 {[%clk 0:01:33.6]}
35... g5 {[%clk 0:00:17.8]} 36. Bd4 {[%clk 0:01:33.4]} 36... f6 {[%clk
0:00:16.6]} 37. Re2 {[%clk 0:01:32.9]} 37... Kf7 {[%clk 0:00:15.9]} 38. Rxe4
{[%clk 0:01:32.8]} 38... Rc1 {[%clk 0:00:13.7]} 39. Re2 {[%clk 0:01:31.8]} 39...
Rc4 {[%clk 0:00:13.1]} 40. Bxa7 {[%clk 0:01:31.7]} 40... Ra4 {[%clk 0:00:13.3]}
41. Bc5 {[%clk 0:01:29.8]} 41... f5 {[%clk 0:00:12.1]} 42. gxf5 {[%clk
0:01:29.5]} 42... exf5 {[%clk 0:00:12.5]} 43. a3 {[%clk 0:01:29.4]} 43... g4
{[%clk 0:00:12.5]} 44. Re5 {[%clk 0:01:29.3]} 44... Kg6 {[%clk 0:00:11.3]} 45.
Rxd5 {[%clk 0:01:29.3]} 45... Rc4 {[%clk 0:00:10.5]} 46. Ke2 {[%clk 0:01:23.5]}
46... f3+ {[%clk 0:00:10.1]} 47. Kd3 {[%clk 0:01:23.3]} 47... Rc1 {[%clk
0:00:09.7]} 48. Kd2 {[%clk 0:01:20.5]} 48... Ra1 {[%clk 0:00:08.9]} 49. Rd6+
{[%clk 0:01:12.7]} 49... Kg5 {[%clk 0:00:07.9]} 50. Rd8 {[%clk 0:01:11.4]} 50...
Ra2+ {[%clk 0:00:07.2]} 51. Kc3 {[%clk 0:01:11.4]} 51... g3 {[%clk 0:00:06.7]}
52. Kb3 {[%clk 0:01:09.6]} 52... Re2 {[%clk 0:00:05.8]} 53. Rg8+ {[%clk
0:01:08.2]} 53... Kf4 {[%clk 0:00:05.3]} 54. Bd6+ {[%clk 0:01:07.4]} 54... Ke4
{[%clk 0:00:03.9]} 55. Bxg3 {[%clk 0:01:04.6]} 55... f2 {[%clk 0:00:04.3]} 56.
Bxf2 {[%clk 0:01:01.8]} 56... Rxf2 {[%clk 0:00:05.2]} 57. a4 {[%clk 0:01:01.9]}
57... Rf1 {[%clk 0:00:05.1]} 58. Re8+ {[%clk 0:01:00.5]} 58... Kf3 {[%clk
0:00:04]} 59. a5 {[%clk 0:00:59.5]} 59... Ra1 {[%clk 0:00:03.2]} 60. Re5 {[%clk
0:00:59.6]} 60... f4 {[%clk 0:00:03.4]} 61. Kb2 {[%clk 0:01:00.5]} 61... Ra4
{[%clk 0:00:03.1]} 62. Kb3 {[%clk 0:01:01]} 62... Ra1 {[%clk 0:00:03.4]} 63. Kb2
{[%clk 0:01:01.4]} 63... Ra4 {[%clk 0:00:03.8]} 64. Rf5 {[%clk 0:01:01]} 64...
Kg3 {[%clk 0:00:03.3]} 65. Rg5+ {[%clk 0:01:00.8]} 65... Kf2 {[%clk 0:00:03.1]}
66. Kb3 {[%clk 0:01:01.1]} 66... Ra1 {[%clk 0:00:02.8]} 67. Kb2 {[%clk
0:00:59.4]} 67... Ra4 {[%clk 0:00:02.8]} 68. Rf5 {[%clk 0:00:59.1]} 68... f3
{[%clk 0:00:02.6]} 69. Kb3 {[%clk 0:01:00]} 69... Ra1 {[%clk 0:00:02.7]} 70. Kb4
{[%clk 0:00:59.9]} 70... Kg2 {[%clk 0:00:01.6]} 71. Rg5+ {[%clk 0:01:00.2]}
71... Kf1 {[%clk 0:00:01.8]} 72. Rh5 {[%clk 0:00:59.9]} 72... f2 {[%clk
0:00:02.3]} 73. Rh1+ {[%clk 0:01:00]} 1-0

[Event "Early-Titled-Tuesday-Blitz-September-26-2023"]
[Site "Chess.com"]
[Date "2023.09.26"]
[Round "8"]
[White "ViktoriyaTarasova"]
[Black "Likvidator228"]
[Result "0-1"]
[WhiteElo "2397"]
[BlackElo "2524"]
[TimeControl "180+1"]
[EndTime "9:29:46 PDT"]
[Termination "Likvidator228 won on time"]

1. d4 {[%clk 0:03:00.9]} 1... f5 {[%clk 0:02:59.8]} 2. g3 {[%clk 0:02:59.6]}
2... Nf6 {[%clk 0:03:00.4]} 3. Bg2 {[%clk 0:02:59.8]} 3... g6 {[%clk 0:03:01.1]}
4. Nf3 {[%clk 0:03:00.4]} 4... Bg7 {[%clk 0:03:01.8]} 5. O-O {[%clk 0:03:00.5]}
5... O-O {[%clk 0:03:02.4]} 6. c4 {[%clk 0:03:01]} 6... d6 {[%clk 0:03:03]} 7.
Nc3 {[%clk 0:03:01.4]} 7... Nc6 {[%clk 0:03:02.2]} 8. b3 {[%clk 0:03:01.3]} 8...
e5 {[%clk 0:03:02.1]} 9. dxe5 {[%clk 0:02:59]} 9... dxe5 {[%clk 0:03:01]} 10. e4
{[%clk 0:02:59.7]} 10... Nxe4 {[%clk 0:02:47.5]} 11. Nxe4 {[%clk 0:02:55.9]}
11... fxe4 {[%clk 0:02:48.4]} 12. Ng5 {[%clk 0:02:56.3]} 12... Bf5 {[%clk
0:02:47.1]} 13. Nxe4 {[%clk 0:02:51.1]} 13... Nd4 {[%clk 0:02:46.1]} 14. Bg5
{[%clk 0:02:39.5]} 14... Qe8 {[%clk 0:02:30.8]} 15. Re1 {[%clk 0:01:05.2]} 15...
h6 {[%clk 0:02:28.4]} 16. Be3 {[%clk 0:01:04.6]} 16... Rd8 {[%clk 0:02:23.5]}
17. Qc1 {[%clk 0:01:04.3]} 17... Kh7 {[%clk 0:02:20.2]} 18. Bxd4 {[%clk
0:01:00.4]} 18... Rxd4 {[%clk 0:02:17.6]} 19. Qe3 {[%clk 0:00:51.6]} 19... b6
{[%clk 0:02:12.7]} 20. Rad1 {[%clk 0:00:46.4]} 20... Qd8 {[%clk 0:02:07]} 21.
Nc3 {[%clk 0:00:31]} 21... c5 {[%clk 0:01:44.2]} 22. Be4 {[%clk 0:00:29.7]}
22... Bg4 {[%clk 0:01:33.8]} 23. f3 {[%clk 0:00:29.8]} 23... Bf5 {[%clk
0:01:32.6]} 24. Kg2 {[%clk 0:00:27.5]} 24... Qc8 {[%clk 0:01:31.8]} 25. Nd5
{[%clk 0:00:22.4]} 25... Qd7 {[%clk 0:01:22.8]} 26. Kg1 {[%clk 0:00:22.4]} 26...
h5 {[%clk 0:01:22.3]} 27. Qe2 {[%clk 0:00:18.4]} 27... Bh6 {[%clk 0:01:13.1]}
28. Rd3 {[%clk 0:00:18]} 28... Qf7 {[%clk 0:01:04.6]} 29. Kg2 {[%clk 0:00:17]}
29... Bg5 {[%clk 0:01:01.2]} 30. h4 {[%clk 0:00:16.3]} 30... Bh6 {[%clk
0:01:00.8]} 31. Rxd4 {[%clk 0:00:16.2]} 31... exd4 {[%clk 0:01:00]} 32. Bxf5
{[%clk 0:00:16.5]} 32... Qxf5 {[%clk 0:00:59.7]} 33. g4 {[%clk 0:00:07.9]} 33...
Qf7 {[%clk 0:00:48.1]} 34. g5 {[%clk 0:00:08.2]} 34... Bg7 {[%clk 0:00:48.1]}
35. Qe4 {[%clk 0:00:08.9]} 35... Rd8 {[%clk 0:00:42.5]} 36. Re2 {[%clk
0:00:09.3]} 36... Rd7 {[%clk 0:00:42.3]} 37. Re1 {[%clk 0:00:09.7]} 37... Rd8
{[%clk 0:00:34.2]} 38. Re2 {[%clk 0:00:10]} 38... Rf8 {[%clk 0:00:34.8]} 39. f4
{[%clk 0:00:09.9]} 39... Qd7 {[%clk 0:00:33.3]} 40. Qe6 {[%clk 0:00:08.9]} 40...
Qxe6 {[%clk 0:00:30.5]} 41. Rxe6 {[%clk 0:00:09]} 41... Rf7 {[%clk 0:00:31.4]}
42. Kf3 {[%clk 0:00:08.6]} 42... Kg8 {[%clk 0:00:31.1]} 43. Ke4 {[%clk
0:00:08.7]} 43... Kf8 {[%clk 0:00:30.9]} 44. Rxg6 {[%clk 0:00:08.5]} 44... Rd7
{[%clk 0:00:28.4]} 45. f5 {[%clk 0:00:08.7]} 45... Kf7 {[%clk 0:00:28.3]} 46.
Rc6 {[%clk 0:00:08.1]} 46... Bf8 {[%clk 0:00:28]} 47. g6+ {[%clk 0:00:07.8]}
47... Kg7 {[%clk 0:00:28.1]} 48. Nf4 {[%clk 0:00:07.6]} 48... Kh6 {[%clk
0:00:28]} 49. Nd3 {[%clk 0:00:06.7]} 49... Be7 {[%clk 0:00:27.6]} 50. Ne5 {[%clk
0:00:06.6]} 50... Rb7 {[%clk 0:00:26.6]} 51. Nf7+ {[%clk 0:00:06.7]} 51... Kg7
{[%clk 0:00:27]} 52. Ne5 {[%clk 0:00:05.3]} 52... Bxh4 {[%clk 0:00:27.2]} 53.
Nf3 {[%clk 0:00:04.9]} 53... Bf6 {[%clk 0:00:27.2]} 54. Kd5 {[%clk 0:00:04.1]}
54... Rd7+ {[%clk 0:00:27]} 55. Ke4 {[%clk 0:00:04.2]} 55... d3 {[%clk
0:00:27.1]} 56. Nd2 {[%clk 0:00:01.5]} 56... Bg5 {[%clk 0:00:27.6]} 57. Nf3
{[%clk 0:00:01.4]} 57... d2 {[%clk 0:00:27.6]} 58. Nxd2 {[%clk 0:00:02.1]} 58...
Bxd2 {[%clk 0:00:27.5]} 0-1

[Event "Early-Titled-Tuesday-Blitz-September-26-2023"]
[Site "Chess.com"]
[Date "2023.09.26"]
[Round "8"]
[White "Shockerlover"]
[Black "PattyCastillo"]
[Result "0-1"]
[WhiteElo "1967"]
[BlackElo "1883"]
[TimeControl "180+1"]
[EndTime "9:29:46 PDT"]
[Termination "PattyCastillo won by checkmate"]

1. d4 {[%clk 0:03:00.9]} 1... d5 {[%clk 0:02:53.1]} 2. Nf3 {[%clk 0:03:00.4]}
2... Nf6 {[%clk 0:02:50.1]} 3. c4 {[%clk 0:02:54.8]} 3... c6 {[%clk 0:02:49.9]}
4. g3 {[%clk 0:02:53.2]} 4... e6 {[%clk 0:02:45.3]} 5. Bg2 {[%clk 0:02:53.1]}
5... Nbd7 {[%clk 0:02:46.1]} 6. O-O {[%clk 0:02:53.4]} 6... Be7 {[%clk
0:02:46.6]} 7. Qc2 {[%clk 0:02:53.6]} 7... O-O {[%clk 0:02:47.1]} 8. Rd1 {[%clk
0:02:53.3]} 8... b6 {[%clk 0:02:47]} 9. cxd5 {[%clk 0:02:38.4]} 9... cxd5 {[%clk
0:02:40.8]} 10. Qc6 {[%clk 0:02:35.1]} 10... Ba6 {[%clk 0:02:31]} 11. Bf4 {[%clk
0:02:29.6]} 11... Rc8 {[%clk 0:02:27.5]} 12. Qa4 {[%clk 0:02:27]} 12... Bxe2
{[%clk 0:02:25.5]} 13. Re1 {[%clk 0:02:21.9]} 13... Bxf3 {[%clk 0:02:22.9]} 14.
Bxf3 {[%clk 0:02:21.2]} 14... a5 {[%clk 0:02:22.7]} 15. Nc3 {[%clk 0:02:21.1]}
15... Rc4 {[%clk 0:02:16]} 16. Qb3 {[%clk 0:01:59.1]} 16... Rb4 {[%clk
0:02:09.7]} 17. Qd1 {[%clk 0:01:58]} 17... Rxb2 {[%clk 0:02:02.3]} 18. Na4
{[%clk 0:01:56.6]} 18... Rb4 {[%clk 0:02:00.2]} 19. a3 {[%clk 0:01:56.2]} 19...
Rc4 {[%clk 0:01:54.8]} 20. Be2 {[%clk 0:01:55]} 20... Rc8 {[%clk 0:01:52.8]} 21.
Qb3 {[%clk 0:01:46.6]} 21... Ne4 {[%clk 0:01:47.6]} 22. Bb5 {[%clk 0:01:42.9]}
22... Ndf6 {[%clk 0:01:14.2]} 23. Bd3 {[%clk 0:01:33.7]} 23... Rc6 {[%clk
0:01:07.3]} 24. Rac1 {[%clk 0:01:27.6]} 24... Rxc1 {[%clk 0:00:51.1]} 25. Rxc1
{[%clk 0:01:26.4]} 25... Bd6 {[%clk 0:00:49.5]} 26. Be3 {[%clk 0:01:09.1]} 26...
Nd7 {[%clk 0:00:48.7]} 27. Rc6 {[%clk 0:01:05.3]} 27... Bc7 {[%clk 0:00:46.5]}
28. Qc2 {[%clk 0:00:53.1]} 28... Bb8 {[%clk 0:00:42.1]} 29. Bxe4 {[%clk
0:00:49.7]} 29... dxe4 {[%clk 0:00:42]} 30. Qxe4 {[%clk 0:00:48.7]} 30... Nf6
{[%clk 0:00:40.9]} 31. Qb1 {[%clk 0:00:43.8]} 31... Qd5 {[%clk 0:00:39]} 32.
Rxb6 {[%clk 0:00:36.5]} 32... Ba7 {[%clk 0:00:33.7]} 33. Rb5 {[%clk 0:00:33.6]}
33... Qd7 {[%clk 0:00:32.6]} 34. Nc5 {[%clk 0:00:32.4]} 34... Bxc5 {[%clk
0:00:32.8]} 35. dxc5 {[%clk 0:00:32.5]} 35... Rc8 {[%clk 0:00:31.5]} 36. Rxa5
{[%clk 0:00:30.7]} 36... Nd5 {[%clk 0:00:30.9]} 37. Bd4 {[%clk 0:00:24.8]} 37...
Qe7 {[%clk 0:00:27.3]} 38. Qe1 {[%clk 0:00:17.3]} 38... h6 {[%clk 0:00:24.5]}
39. Ra6 {[%clk 0:00:13.2]} 39... Qb7 {[%clk 0:00:18.1]} 40. Qe2 {[%clk
0:00:10.9]} 40... Qb1+ {[%clk 0:00:14.6]} 41. Kg2 {[%clk 0:00:09.4]} 41... Qb7
{[%clk 0:00:14.8]} 42. Ra5 {[%clk 0:00:06.2]} 42... Nf4+ {[%clk 0:00:13.9]} 43.
Kf1 {[%clk 0:00:03.9]} 43... Qh1# {[%clk 0:00:12.8]} 0-1

[Event "Early-Titled-Tuesday-Blitz-September-26-2023"]
[Site "Chess.com"]
[Date "2023.09.26"]
[Round "8"]
[White "DonkyDonkyDonkey"]
[Black "Flawless_Fighter"]
[Result "1-0"]
[WhiteElo "2761"]
[BlackElo "2836"]
[TimeControl "180+1"]
[EndTime "9:29:50 PDT"]
[Termination "DonkyDonkyDonkey won on time"]

1. d4 {[%clk 0:03:00.9]} 1... Nf6 {[%clk 0:02:59.9]} 2. Nc3 {[%clk 0:03:01.3]}
2... d5 {[%clk 0:02:59.7]} 3. Bf4 {[%clk 0:03:01.7]} 3... a6 {[%clk 0:02:59.7]}
4. e3 {[%clk 0:03:01.6]} 4... e6 {[%clk 0:02:59.7]} 5. g4 {[%clk 0:03:02]} 5...
Bb4 {[%clk 0:02:58.3]} 6. Ne2 {[%clk 0:02:57.8]} 6... O-O {[%clk 0:02:52.4]} 7.
a3 {[%clk 0:02:50.5]} 7... Bd6 {[%clk 0:02:51.8]} 8. g5 {[%clk 0:02:47.5]} 8...
Ne8 {[%clk 0:02:42]} 9. h4 {[%clk 0:02:46.6]} 9... c5 {[%clk 0:02:40.6]} 10. Bg2
{[%clk 0:02:45.6]} 10... Nc6 {[%clk 0:02:40.3]} 11. O-O {[%clk 0:02:45.1]} 11...
Bxf4 {[%clk 0:02:37.2]} 12. Nxf4 {[%clk 0:02:46]} 12... cxd4 {[%clk 0:02:34.2]}
13. exd4 {[%clk 0:02:46.9]} 13... Nd6 {[%clk 0:02:30.1]} 14. Bh3 {[%clk
0:02:16.6]} 14... Bd7 {[%clk 0:02:00.1]} 15. Re1 {[%clk 0:02:13.6]} 15... Rc8
{[%clk 0:01:57]} 16. Qd3 {[%clk 0:02:11.2]} 16... Ne7 {[%clk 0:01:43.3]} 17.
Rad1 {[%clk 0:01:14]} 17... Nef5 {[%clk 0:01:42.5]} 18. Bxf5 {[%clk 0:01:13.6]}
18... Nxf5 {[%clk 0:01:41.4]} 19. Qh3 {[%clk 0:01:14.3]} 19... Nxd4 {[%clk
0:01:29.4]} 20. Rxd4 {[%clk 0:01:05.9]} 20... e5 {[%clk 0:01:29.1]} 21. Rxd5
{[%clk 0:01:06.4]} 21... Bxh3 {[%clk 0:01:23.3]} 22. Rxd8 {[%clk 0:01:06.4]}
22... Rfxd8 {[%clk 0:01:21.2]} 23. Nxh3 {[%clk 0:01:06.6]} 23... f6 {[%clk
0:01:18.2]} 24. Re2 {[%clk 0:01:04.8]} 24... Rc4 {[%clk 0:01:12.9]} 25. Ne4
{[%clk 0:00:44.5]} 25... Rdd4 {[%clk 0:00:55]} 26. f3 {[%clk 0:00:39.8]} 26...
Kf7 {[%clk 0:00:53.9]} 27. Kg2 {[%clk 0:00:34.5]} 27... f5 {[%clk 0:00:46.8]}
28. Ng3 {[%clk 0:00:34.6]} 28... g6 {[%clk 0:00:46.5]} 29. Nf2 {[%clk
0:00:31.8]} 29... Rd5 {[%clk 0:00:30.1]} 30. Nd3 {[%clk 0:00:31]} 30... Rxh4
{[%clk 0:00:29.7]} 31. Nxe5+ {[%clk 0:00:30.5]} 31... Kf8 {[%clk 0:00:29.4]} 32.
Nd3 {[%clk 0:00:26.1]} 32... Rc4 {[%clk 0:00:29.4]} 33. f4 {[%clk 0:00:24.7]}
33... b5 {[%clk 0:00:27.4]} 34. Kf3 {[%clk 0:00:22.2]} 34... a5 {[%clk
0:00:24.3]} 35. Nf1 {[%clk 0:00:22.7]} 35... Rdd4 {[%clk 0:00:23.2]} 36. Ne3
{[%clk 0:00:22.1]} 36... Rc7 {[%clk 0:00:22.6]} 37. Ne5 {[%clk 0:00:20.4]} 37...
b4 {[%clk 0:00:19.9]} 38. axb4 {[%clk 0:00:20.7]} 38... axb4 {[%clk 0:00:20.8]}
39. Rh2 {[%clk 0:00:21.1]} 39... Kg7 {[%clk 0:00:20.4]} 40. Rh1 {[%clk
0:00:20.9]} 40... Ra7 {[%clk 0:00:18.7]} 41. Rc1 {[%clk 0:00:20.3]} 41... Rc7
{[%clk 0:00:18.1]} 42. Ra1 {[%clk 0:00:20.2]} 42... h6 {[%clk 0:00:14.3]} 43.
gxh6+ {[%clk 0:00:20]} 43... Kxh6 {[%clk 0:00:15.2]} 44. Ra6 {[%clk 0:00:20]}
44... Kh7 {[%clk 0:00:11]} 45. Nxg6 {[%clk 0:00:19]} 45... Rg7 {[%clk
0:00:04.8]} 46. Nxf5 {[%clk 0:00:16.9]} 46... Rc4 {[%clk 0:00:01.7]} 47. Nxg7
{[%clk 0:00:15.9]} 47... Kxg7 {[%clk 0:00:02.6]} 48. Kg4 {[%clk 0:00:12.3]}
48... Rxc2 {[%clk 0:00:02.9]} 49. Ne5 {[%clk 0:00:12.4]} 49... Rxb2 {[%clk
0:00:02.8]} 50. Kf5 {[%clk 0:00:13.1]} 50... b3 {[%clk 0:00:02.2]} 51. Ra7+
{[%clk 0:00:13.6]} 51... Kg8 {[%clk 0:00:01.3]} 52. Rb7 {[%clk 0:00:12.3]} 52...
Rb1 {[%clk 0:00:01.6]} 53. Kf6 {[%clk 0:00:12.8]} 1-0

[Event "Early-Titled-Tuesday-Blitz-September-26-2023"]
[Site "Chess.com"]
[Date "2023.09.26"]
[Round "8"]
[White "Mikasinski"]
[Black "TheRigos"]
[Result "0-1"]
[WhiteElo "2694"]
[BlackElo "2612"]
[TimeControl "180+1"]
[EndTime "9:29:58 PDT"]
[Termination "TheRigos won by resignation"]

1. e4 {[%clk 0:02:51.2]} 1... f5 {[%clk 0:02:56.6]} 2. exf5 {[%clk 0:02:50.4]}
2... Nf6 {[%clk 0:02:57.1]} 3. d4 {[%clk 0:02:50.3]} 3... d5 {[%clk 0:02:56.6]}
4. Bd3 {[%clk 0:02:50.2]} 4... c5 {[%clk 0:02:57.3]} 5. c3 {[%clk 0:02:46.4]}
5... c4 {[%clk 0:02:57.1]} 6. Bc2 {[%clk 0:02:46.4]} 6... e6 {[%clk 0:02:58]} 7.
fxe6 {[%clk 0:02:46.1]} 7... Bd6 {[%clk 0:02:58.7]} 8. Ne2 {[%clk 0:02:46.1]}
8... Bxe6 {[%clk 0:02:56.6]} 9. Nd2 {[%clk 0:02:46.2]} 9... O-O {[%clk
0:02:56.7]} 10. Nf3 {[%clk 0:02:46.9]} 10... Bg4 {[%clk 0:02:56]} 11. Ne5 {[%clk
0:02:43.7]} 11... Nc6 {[%clk 0:02:49.1]} 12. Bf4 {[%clk 0:02:34]} 12... Nh5
{[%clk 0:02:32.3]} 13. Nxg4 {[%clk 0:02:23.4]} 13... Bxf4 {[%clk 0:02:26.5]} 14.
Nxf4 {[%clk 0:02:19]} 14... Nxf4 {[%clk 0:02:25.9]} 15. O-O {[%clk 0:02:11]}
15... Qg5 {[%clk 0:02:25.5]} 16. g3 {[%clk 0:02:07.7]} 16... Rae8 {[%clk
0:02:11.4]} 17. Kh1 {[%clk 0:02:02.3]} 17... Ne2 {[%clk 0:02:03.3]} 18. Ne3
{[%clk 0:02:01]} 18... Qh5 {[%clk 0:02:03.7]} 19. g4 {[%clk 0:01:14.5]} 19...
Qh3 {[%clk 0:01:43.6]} 20. Qxe2 {[%clk 0:01:13.1]} 20... Re6 {[%clk 0:01:30.6]}
21. f3 {[%clk 0:01:03.8]} 21... Rfe8 {[%clk 0:01:26.2]} 22. Qg2 {[%clk
0:01:02.7]} 22... Qh6 {[%clk 0:01:10.2]} 23. Nf5 {[%clk 0:00:50.1]} 23... Qf4
{[%clk 0:01:09.5]} 24. Qg3 {[%clk 0:00:48.4]} 24... g5 {[%clk 0:01:09.1]} 25.
Qxf4 {[%clk 0:00:47.9]} 25... gxf4 {[%clk 0:01:10]} 26. Rf2 {[%clk 0:00:46.3]}
26... b5 {[%clk 0:01:04.4]} 27. a4 {[%clk 0:00:45.7]} 27... b4 {[%clk
0:01:04.1]} 28. Raf1 {[%clk 0:00:44.3]} 28... Re1 {[%clk 0:01:00]} 29. Kg2
{[%clk 0:00:43.7]} 29... R8e2 {[%clk 0:00:47.6]} 30. Rxe2 {[%clk 0:00:42.9]}
30... Rxe2+ {[%clk 0:00:47]} 31. Rf2 {[%clk 0:00:43.6]} 31... Re1 {[%clk
0:00:47.4]} 32. g5 {[%clk 0:00:37.3]} 32... b3 {[%clk 0:00:47]} 33. Bxb3 {[%clk
0:00:36.1]} 33... cxb3 {[%clk 0:00:46.2]} 34. h4 {[%clk 0:00:31.5]} 34... Na5
{[%clk 0:00:44.4]} 35. h5 {[%clk 0:00:30]} 35... Nc4 {[%clk 0:00:44.9]} 36. Kh3
{[%clk 0:00:25.3]} 36... Ne3 {[%clk 0:00:41.6]} 37. Nxe3 {[%clk 0:00:18.4]}
37... fxe3 {[%clk 0:00:42.5]} 38. Rg2 {[%clk 0:00:18.5]} 38... Rf1 {[%clk
0:00:07.9]} 39. Re2 {[%clk 0:00:12.3]} 39... Rxf3+ {[%clk 0:00:06]} 40. Kg4
{[%clk 0:00:12.5]} 40... Rf2 {[%clk 0:00:05.6]} 41. Rxe3 {[%clk 0:00:13.1]}
41... Rxb2 {[%clk 0:00:06]} 42. Re8+ {[%clk 0:00:12.9]} 42... Kf7 {[%clk
0:00:05.7]} 43. Rb8 {[%clk 0:00:13.7]} 43... Ke6 {[%clk 0:00:03]} 44. h6 {[%clk
0:00:10.1]} 44... Rb1 {[%clk 0:00:03.3]} 45. Kf3 {[%clk 0:00:06.7]} 45... b2
{[%clk 0:00:02.9]} 46. Ke2 {[%clk 0:00:06.7]} 46... Kf5 {[%clk 0:00:03.8]} 47.
Kd2 {[%clk 0:00:06]} 47... Kxg5 {[%clk 0:00:04.2]} 48. Kc2 {[%clk 0:00:04.4]}
48... Rh1 {[%clk 0:00:05.1]} 49. Kxb2 {[%clk 0:00:03.8]} 49... Rxh6 {[%clk
0:00:05.2]} 50. Rb7 {[%clk 0:00:04.2]} 50... Rb6+ {[%clk 0:00:05.2]} 51. Rxb6
{[%clk 0:00:03.3]} 51... axb6 {[%clk 0:00:06.1]} 52. c4 {[%clk 0:00:01.9]} 52...
h5 {[%clk 0:00:07]} 53. cxd5 {[%clk 0:00:02.1]} 53... h4 {[%clk 0:00:05.8]} 54.
Kc3 {[%clk 0:00:01.8]} 54... h3 {[%clk 0:00:05.7]} 0-1